bitfinex-derivatives/quotes_SOLF0:USTF0_20240905
["timestamp","ask_amount","ask_price","bid_price","bid_amount"]
[1725517797507,0.05763524,131.5,131.48,0.05507152]
[1725517797704,0.04956158,131.5,131.48,0.05634995]
[1725517798002,0.04956158,131.5,131.48,3.85934995]
[1725517798203,0.04956158,131.5,131.48,0.05634995]
[1725517800210,3.85206158,131.5,131.48,0.05634995]
[1725517800506,0.04956158,131.5,131.48,0.05634995]
[1725517801003,23.39,131.55,131.48,0.05634995]
[1725517801195,23.39,131.57,131.48,23.44634995]
[1725517801397,23.39,131.57,131.49,1.3496]
[1725517802103,3.8019,131.52,131.49,1.3496]
[1725517802303,3.8019,131.52,131.49,1.40083101]
[1725517802700,3.8016,131.53,131.49,1.40083101]
[1725517802902,3.8016,131.53,131.49,5.20343101]
[1725517803106,0.05055122,131.54,131.49,1.40083101]
[1725517804208,0.05055122,131.54,131.5,23.39]
[1725517805004,0.05055122,131.54,131.49,1.40083101]
[1725517805510,0.05055122,131.54,131.51,3.8021]
[1725517805710,0.05055122,131.54,131.52,3.75693969]
[1725517806005,0.05055122,131.54,131.52,0.05529477]
[1725517806311,0.05055122,131.54,131.52,3.93657851]
[1725517806504,0.05055122,131.54,131.52,0.05529477]
[1725517807007,0.05055122,131.54,131.52,3.87877944]
[1725517807716,0.05055122,131.54,131.52,0.05529477]
[1725517808604,3.8016,131.53,131.52,0.05529477]
[1725517810915,0.05055122,131.54,131.52,0.05529477]
[1725517813913,0.05055122,131.54,131.52,3.85709477]
[1725517814815,0.05055122,131.54,131.52,0.05529477]
[1725517816518,13.20195122,131.54,131.52,0.05529477]
[1725517817306,3.8016,131.53,131.52,0.05529477]
[1725517817707,13.1516,131.53,131.52,0.05529477]
[1725517818420,1.4303,131.59,131.47,3.88889748]
[1725517818718,9.35,131.54,131.48,3.8029]
[1725517818906,3.8018,131.53,131.48,7.59141274]
[1725517819109,9.35,131.54,131.48,7.59141274]
[1725517819417,0.05758192,131.52,131.5,0.05669472]
[1725517819615,3.85958192,131.52,131.5,0.05669472]
[1725517820718,0.05758192,131.52,131.5,0.05669472]
[1725517822112,3.8021,131.51,131.5,0.05669472]
[1725517822315,0.05758192,131.52,131.5,0.05669472]
[1725517824718,3.85958192,131.52,131.5,0.05669472]
[1725517825512,3.8021,131.51,131.5,0.05669472]
[1725517825711,13.1521,131.51,131.5,0.05669472]
[1725517826120,3.8021,131.51,131.5,0.05669472]
[1725517826324,3.85948192,131.52,131.5,0.05669472]
[1725517827622,0.05758192,131.52,131.5,9.40669472]
[1725517827921,0.05758192,131.52,131.5,0.05669472]
[1725517831620,0.05758192,131.52,131.5,3.85909472]
[1725517833020,0.05758192,131.52,131.5,0.05669472]
[1725517833418,3.85948192,131.52,131.5,0.05669472]
[1725517834023,0.05758192,131.52,131.5,0.05669472]
[1725517835624,9.35,131.56,131.51,9.35]
[1725517835925,3.8012,131.55,131.51,13.152]
[1725517836630,0.05600817,131.54,131.51,13.152]
[1725517836822,3.85730817,131.54,131.51,13.152]
[1725517837028,0.05600817,131.54,131.51,13.152]
[1725517839729,3.85740817,131.54,131.51,13.152]
[1725517840225,0.05600817,131.54,131.51,13.152]
[1725517840635,0.05600817,131.54,131.5,3.85909472]
[1725517841236,0.05600817,131.54,131.5,0.05669472]
[1725517841434,0.05600817,131.54,131.51,9.35]
[1725517842037,0.05600817,131.54,131.52,9.35]
[1725517843438,0.05600817,131.54,131.5,0.05669472]
[1725517843737,0.05600817,131.54,131.5,9.40669472]
[1725517843933,0.05600817,131.54,131.51,3.8019]
[1725517844631,0.05600817,131.54,131.51,9.35]
[1725517845631,0.05600817,131.54,131.52,3.8018]
[1725517846040,0.05600817,131.54,131.53,3.8016]
[1725517846837,0.05600817,131.54,131.52,3.8017]
[1725517847541,0.05600817,131.54,131.51,3.8019]
[1725517847938,0.05600817,131.54,131.51,9.35]
[1725517848139,0.05600817,131.54,131.53,3.8016]
[1725517849043,0.05600817,131.54,131.53,13.1516]
[1725517849346,9.35,131.63,131.53,9.35]
[1725517849540,9.35,131.63,131.56,9.35]
[1725517849738,3.7993,131.61,131.57,3.8003]
[1725517850236,0.05483041,131.6,131.58,3.85036406]
[1725517851738,9.35,131.66,131.59,3.7998]
[1725517851942,9.35,131.66,131.6,9.35]
[1725517852139,3.7983,131.65,131.61,3.7992]
[1725517852647,9.35,131.68,131.61,9.35]
[1725517852939,9.35,131.68,131.63,0.05850513]
[1725517852940,3.7979,131.66,131.63,0.05850513]
[1725517853834,9.35,131.68,131.63,0.05850513]
[1725517853835,3.7981,131.65,131.63,0.05850513]
[1725517854342,13.1481,131.65,131.63,0.05850513]
[1725517855650,3.7981,131.65,131.63,0.05850513]
[1725517857348,3.82444664,131.71,131.63,0.05850513]
[1725517857544,9.35,131.65,131.59,1.424]
[1725517857746,9.35,131.63,131.61,0.05394217]
[1725517857945,2.533,131.72,131.61,0.05394217]
[1725517858146,9.35,131.67,131.65,0.05021604]
[1725517858655,3.7981,131.66,131.65,0.05021604]
[1725517861761,13.1481,131.66,131.65,0.05021604]
[1725517861960,3.7981,131.66,131.65,0.05021604]
[1725517863662,23.35,131.67,131.58,1.3581]
[1725517863866,23.35,131.65,131.58,1.3581]
[1725517864456,3.7991,131.62,131.6,0.0493839]
[1725517864660,0.05223477,131.63,131.6,0.0493839]
[1725517865065,3.799,131.62,131.6,0.0493839]
[1725517865957,3.85103477,131.63,131.6,0.0493839]
[1725517866864,3.85103477,131.63,131.6,3.8488839]
[1725517867059,0.05223477,131.63,131.6,0.0493839]
[1725517867767,0.05223477,131.63,131.6,23.3993839]
[1725517867963,0.05223477,131.63,131.61,1.419]
[1725517868261,0.05223477,131.63,131.61,2.7924]
[1725517868859,0.05223477,131.63,131.61,6.5915]
[1725517869060,0.05223477,131.63,131.61,2.7924]
[1725517870368,0.05223477,131.63,131.61,6.5916]
[1725517874968,0.05223477,131.63,131.62,3.799]
[1725517875672,23.35,131.71,131.63,7.62555204]
[1725517875974,3.7978,131.66,131.63,30.97555204]
[1725517876577,3.7976,131.67,131.63,31.03095427]
[1725517876778,23.35,131.71,131.64,0.05680264]
[1725517877074,3.7971,131.69,131.64,0.05680264]
[1725517877278,3.7971,131.69,131.65,3.7979]
[1725517877471,23.35,131.71,131.65,3.7979]
[1725517877779,23.35,131.71,131.67,0.05730369]
[1725517878077,3.7974,131.68,131.67,0.05730369]
[1725517881876,3.7971,131.69,131.67,0.05730369]
[1725517883279,3.7967,131.7,131.67,3.85480369]
[1725517883479,3.72948328,131.72,131.67,0.05730369]
[1725517883678,3.7969,131.7,131.67,0.05730369]
[1725517884283,3.72948328,131.72,131.67,0.05730369]
[1725517884674,3.7968,131.7,131.67,0.05730369]
[1725517884879,3.7968,131.7,131.67,9.38730369]
[1725517885184,3.72948328,131.72,131.67,9.38730369]
[1725517885782,9.33,131.74,131.67,9.38730369]
[1725517885983,3.7972,131.69,131.67,9.38730369]
[1725517886282,3.84989877,131.72,131.67,9.38730369]
[1725517886483,9.33,131.74,131.67,9.38730369]
[1725517886680,0.27927725,131.73,131.67,9.38730369]
[1725517886879,3.71922633,131.72,131.67,9.38730369]
[1725517887081,3.7971,131.69,131.67,9.38730369]
[1725517888485,3.7972,131.68,131.67,9.38730369]
[1725517889581,3.7972,131.68,131.67,0.05730369]
[1725517892080,3.7986,131.64,131.62,9.33]
[1725517892488,3.7986,131.64,131.63,3.71912899]
[1725517892687,3.7986,131.64,131.62,9.33]
[1725517893081,3.84672417,131.64,131.62,9.38848426]
[1725517893282,3.7987,131.63,131.62,9.38848426]
[1725517893686,3.7987,131.63,131.62,0.05848426]
[1725517893882,3.8004,131.57,131.54,1.3152]
[1725517894082,9.33,131.6,131.54,1.3152]
[1725517894386,9.33,131.6,131.53,9.33]
[1725517894781,1.1832,131.62,131.53,9.33]
[1725517894985,9.33,131.58,131.56,0.0579948]
[1725517895886,3.8004,131.57,131.56,0.0579948]
[1725517897592,0.0523718,131.59,131.56,0.0579948]
[1725517898091,3.8003,131.58,131.56,0.0579948]
[1725517899485,3.8522718,131.59,131.56,0.0579948]
[1725517899880,0.0523718,131.59,131.56,1.4585948]
[1725517900082,0.0523718,131.59,131.57,23.37]
[1725517900286,0.0523718,131.59,131.58,3.7345025]
[1725517901090,0.0523718,131.59,131.57,24.7964]
[1725517901289,0.0523718,131.59,131.57,26.1866]
[1725517901786,1.184,131.66,131.58,3.8001]
[1725517901987,23.37,131.67,131.57,26.1866]
[1725517902586,23.37,131.67,131.58,3.84513472]
[1725517902786,0.04880886,131.64,131.61,0.05237312]
[1725517903191,3.7992,131.62,131.61,0.05237312]
[1725517903999,3.8001,131.59,131.56,1.4006]
[1725517904190,23.37,131.63,131.56,1.4006]
[1725517904690,3.7993,131.61,131.56,1.4006]
[1725517904887,23.37,131.63,131.56,1.4006]
[1725517905089,0.05564567,131.61,131.58,0.05646736]
[1725517905397,3.7998,131.59,131.58,0.05646736]
[1725517912794,46.74,131.6,131.39,101.13756582]
[1725517912995,0.27948299,131.59,131.45,23.37]
[1725517913199,23.37,131.55,131.45,27.10555352]
[1725517913398,3.8022,131.51,131.47,3.8033]
[1725517913603,3.8022,131.51,131.47,27.1733]
[1725517913805,0.05472954,131.5,131.48,2.72502539]
[1725517914103,0.05472954,131.5,131.48,1.39142539]
[1725517914303,0.05472954,131.5,131.48,0.05042539]
[1725517915007,3.8027,131.49,131.48,0.05042539]
[1725517915396,3.8038,131.46,131.42,2.6746]
[1725517915599,3.8038,131.46,131.42,29.83185669]
[1725517916303,3.8038,131.46,131.42,33.63655669]
[1725517916500,0.04886807,131.45,131.43,0.05684744]
[1725517917606,23.41886807,131.45,131.43,0.05684744]
[1725517917802,3.8053,131.41,131.37,3.8436073]
[1725517918004,3.8053,131.41,131.36,23.37]
[1725517918204,3.8053,131.41,131.36,30.93837656]
[1725517918705,23.37,131.44,131.34,27.4872]
[1725517918908,0.05627898,131.4,131.37,0.05342825]
[1725517919111,0.05187919,131.4,131.37,0.05277565]
[1725517919799,0.05187919,131.4,131.37,3.85897565]
[1725517920411,0.05187919,131.4,131.38,27.1757]
[1725517921099,0.05187919,131.4,131.38,23.37]
[1725517921411,0.05187919,131.4,131.37,0.05277565]
[1725517921598,0.05187919,131.4,131.39,3.8056]
[1725517921901,23.37,131.48,131.38,23.37]
[1725517922101,3.8051,131.41,131.33,3.8072]
[1725517922309,23.37,131.42,131.35,1.3173]
[1725517922805,0.04962093,131.4,131.37,0.04876999]
[1725517923001,23.41962093,131.4,131.37,0.04876999]
[1725517923203,3.8061,131.38,131.37,0.04876999]
[1725517924607,3.8057,131.39,131.37,0.04876999]
[1725517925206,0.04962093,131.4,131.37,0.04876999]
[1725517926509,3.85492093,131.4,131.37,0.04876999]
[1725517927608,0.04962093,131.4,131.37,0.04876999]
[1725517928009,0.04962093,131.4,131.37,3.85476999]
[1725517928403,0.04962093,131.4,131.38,3.8057]
[1725517929713,0.04962093,131.4,131.39,3.8056]
[1725517933418,0.04962093,131.4,131.37,0.04876999]
[1725517935316,0.04962093,131.4,131.38,3.8059]
[1725517935914,0.04962093,131.4,131.39,3.8056]
[1725517938814,23.37,131.47,131.42,3.8047]
[1725517939516,3.8038,131.46,131.43,3.8044]
[1725517939715,24.6881,131.49,131.43,3.8044]
[1725517940016,3.86207034,131.47,131.45,0.05736499]
[1725517942520,0.05857034,131.47,131.45,0.05736499]
[1725517946021,23.37,131.53,131.45,23.42736499]
[1725517946225,3.8019,131.52,131.45,23.37]
[1725517947115,3.8019,131.52,131.48,3.8028]
[1725517947116,0.05126908,131.5,131.48,3.8028]
[1725517948524,0.05126908,131.5,131.47,0.05142053]
[1725517949729,3.85376908,131.5,131.47,0.05142053]
[1725517950230,0.05126908,131.5,131.47,0.05142053]
[1725517950921,0.05126908,131.5,131.47,3.83337202]
[1725517952221,0.05126908,131.5,131.49,3.8027]
[1725517953028,23.37,131.56,131.51,3.8021]
[1725517953533,23.37,131.56,131.52,3.8017]
[1725517953931,23.37,131.58,131.52,3.8017]
[1725517954135,0.04999478,131.56,131.54,0.05504262]
[1725517954339,3.85089478,131.56,131.54,0.05504262]
[1725517954939,0.04999478,131.56,131.54,0.05504262]
[1725517955438,0.04999478,131.56,131.54,3.85614262]
[1725517958731,0.04999478,131.56,131.55,3.801]
[1725517962528,0.04999478,131.56,131.54,0.05504262]
[1725517962724,0.04999478,131.56,131.54,3.85624262]
[1725517963726,0.04999478,131.56,131.55,3.801]
[1725517963940,0.04999478,131.56,131.54,0.05504262]
[1725517965037,3.801,131.55,131.54,0.05504262]
[1725517967642,23.41999478,131.56,131.48,2.6543]
[1725517967844,23.37,131.6,131.48,1.3532]
[1725517967845,23.37,131.54,131.48,1.3532]
[1725517968139,3.802,131.52,131.48,5.1561]
[1725517968736,0.05324666,131.51,131.49,3.86079127]
[1725517969038,0.05781467,131.51,131.49,3.86040787]
[1725517970738,0.05781467,131.51,131.5,3.8024]
[1725517973235,3.8011,131.55,131.52,3.8018]
[1725517973439,23.37,131.58,131.48,24.7232]
[1725517973640,3.8009,131.56,131.48,24.7232]
[1725517974242,23.37,131.58,131.52,3.8016]
[1725517974243,0.05831281,131.53,131.52,3.8016]
[1725517974441,0.05535067,131.54,131.52,3.8016]
[1725517976146,0.05535067,131.54,131.53,3.8016]
[1725517977843,23.37,131.61,131.55,3.8008]
[1725517978441,23.37,131.61,131.56,3.8006]
[1725517978845,3.8,131.59,131.57,0.05785773]
[1725517981457,3.7996,131.6,131.57,3.85815773]
[1725517981753,23.37,131.64,131.57,0.05785773]
[1725517982149,3.799,131.62,131.59,3.7996]
[1725517982350,3.799,131.62,131.59,3.85344795]
[1725517983350,3.7987,131.63,131.6,3.7995]
[1725517983949,3.7993,131.61,131.59,0.05384795]
[1725517984251,23.37,131.64,131.59,0.05384795]
[1725517984647,3.7994,131.61,131.59,0.05384795]
[1725517985148,3.7991,131.62,131.59,3.85364795]
[1725517985457,3.7991,131.62,131.59,3.84834623]
[1725517985848,3.7988,131.63,131.6,3.7995]
[1725517987753,3.7985,131.64,131.61,3.7991]
[1725517987953,25.9354,131.68,131.59,23.41854623]
[1725517988151,25.9354,131.68,131.62,0.05098303]
[1725517988356,3.7981,131.65,131.62,3.84968303]
[1725517988559,23.37,131.66,131.62,0.05098303]
[1725517989157,23.37,131.64,131.55,27.5398]
[1725517989455,3.7999,131.59,131.56,3.8005]
[1725517989660,23.37,131.62,131.56,3.8005]
[1725517990353,3.84943212,131.6,131.58,0.05832505]
[1725517991357,0.04973212,131.6,131.58,3.85842505]
[1725517991756,0.04973212,131.6,131.58,0.05832505]
[1725517992156,3.84933212,131.6,131.58,0.05832505]
[1725517993063,0.04973212,131.6,131.58,0.05832505]
[1725517994256,0.04973212,131.6,131.58,3.85842505]
[1725517994452,0.04973212,131.6,131.58,0.05832505]
[1725517994958,3.7985,131.64,131.57,23.37]
[1725517995160,23.37,131.66,131.57,23.37]
[1725517995861,23.37,131.66,131.6,3.85578293]
[1725517996056,23.37,131.66,131.6,0.05648293]
[1725517997466,3.7986,131.64,131.61,3.7992]
[1725517999165,3.7982,131.65,131.61,3.7992]
[1725517999360,3.7982,131.65,131.62,0.0569602]
[1725518000767,23.37,131.66,131.62,0.0569602]
[1725518001064,23.37,131.66,131.63,0.0514319]
[1725518001667,3.7984,131.64,131.63,0.0514319]
[1725518004970,3.7996,131.6,131.55,4.1698]
[1725518005161,27.15020774,131.64,131.55,4.1698]
[1725518005358,23.37,131.62,131.55,4.1698]
[1725518005570,3.7996,131.6,131.55,7.9706]
[1725518005970,0.05155549,131.59,131.56,0.05377879]
[1725518006166,3.85145549,131.59,131.56,0.05377879]
[1725518006767,3.85145549,131.59,131.56,3.85437879]
[1725518008771,0.05155549,131.59,131.56,3.85437879]
[1725518009670,0.05155549,131.59,131.57,3.8003]
[1725518010465,0.05155549,131.59,131.58,3.8001]
[1725518011973,1.3102,131.68,131.58,23.37]
[1725518012171,24.6802,131.68,131.58,23.37]
[1725518012480,3.7983,131.65,131.58,23.37]
[1725518012678,3.7983,131.65,131.61,3.7991]
[1725518012878,3.7979,131.66,131.62,0.04954263]
[1725518013072,23.37,131.7,131.62,0.04954263]
[1725518013273,23.37,131.7,131.65,0.05647534]
[1725518013575,1.1779,131.71,131.58,3.8]
[1725518013576,23.37,131.67,131.58,3.8]
[1725518013775,23.37,131.67,131.56,24.7211]
[1725518013975,3.7985,131.64,131.56,24.7211]
[1725518014177,3.7985,131.64,131.59,3.7996]
[1725518014371,23.37,131.67,131.59,3.7996]
[1725518014576,3.7988,131.63,131.58,3.78058777]
[1725518014872,0.0521908,131.62,131.59,0.05512488]
[1725518016281,3.7993,131.61,131.59,0.05512488]
[1725518017367,3.7995,131.6,131.59,0.05512488]
[1725518021390,3.7993,131.61,131.59,0.05512488]
[1725518023487,3.7995,131.6,131.59,0.05512488]
[1725518024189,3.7993,131.61,131.59,0.05512488]
[1725518026686,3.7992,131.61,131.59,0.05512488]
[1725518027690,3.7995,131.6,131.59,0.05512488]
[1725518027894,0.0521908,131.62,131.59,0.05512488]
[1725518028487,3.7994,131.61,131.59,0.05512488]
[1725518028687,0.0521908,131.62,131.59,0.05512488]
[1725518029689,3.8513908,131.62,131.59,0.05512488]
[1725518030985,0.0521908,131.62,131.59,0.05512488]
[1725518031494,0.0521908,131.62,131.61,3.7992]
[1725518031794,0.0521908,131.62,131.61,7.53494578]
[1725518033695,3.7995,131.6,131.59,0.05512488]
[1725518033898,23.4221908,131.62,131.59,0.05512488]
[1725518034300,3.7995,131.6,131.59,0.05512488]
[1725518035398,0.0521908,131.62,131.59,0.05512488]
[1725518037403,3.7995,131.61,131.59,0.05512488]
[1725518038604,3.8511908,131.62,131.59,0.05512488]
[1725518039002,0.0521908,131.62,131.59,0.05512488]
[1725518039199,3.7995,131.61,131.59,0.05512488]
[1725518040212,3.7995,131.6,131.59,0.05512488]
[1725518043011,23.37,131.58,131.48,4.125]
[1725518043204,23.37,131.58,131.49,23.37]
[1725518043406,3.8012,131.55,131.49,23.37]
[1725518044105,0.05719853,131.53,131.51,0.05467406]
[1725518044300,0.05822842,131.53,131.51,0.05467406]
[1725518044703,0.05822842,131.53,131.51,3.85677406]
[1725518045202,0.05822842,131.53,131.51,23.42467406]
[1725518045408,0.05822842,131.53,131.52,3.8018]
[1725518045814,3.8005,131.57,131.53,3.8015]
[1725518046009,3.8008,131.56,131.51,23.37]
[1725518046410,23.37,131.6,131.52,3.8017]
[1725518046605,3.8009,131.56,131.52,3.8017]
[1725518046910,0.04941452,131.55,131.53,0.04994336]
[1725518047507,0.04941452,131.55,131.53,3.85134336]
[1725518048509,0.04941452,131.55,131.54,3.8013]
[1725518052007,0.04941452,131.55,131.54,7.64026354]
[1725518052416,0.04941452,131.55,131.54,9.04766354]
[1725518052715,0.04941452,131.55,131.54,1.4074]
[1725518053013,0.04941452,131.55,131.53,0.04994336]
[1725518055620,0.04941452,131.55,131.53,3.85134336]
[1725518056221,0.04941452,131.55,131.53,0.04994336]
[1725518056521,3.85041452,131.55,131.53,0.04994336]
[1725518056924,0.04941452,131.55,131.53,0.04994336]
[1725518058315,0.04941452,131.55,131.53,3.85144336]
[1725518058519,3.85051452,131.55,131.53,0.04994336]
[1725518061423,3.8013,131.54,131.53,0.04994336]
[1725518063519,0.04941452,131.55,131.53,0.04994336]
[1725518063520,3.85051452,131.55,131.53,0.04994336]
[1725518063719,0.04941452,131.55,131.53,0.04994336]
[1725518064819,3.85041452,131.55,131.53,0.04994336]
[1725518066031,0.04941452,131.55,131.53,0.04994336]
[1725518066815,3.8013,131.54,131.53,0.04994336]
[1725518067925,3.85051452,131.55,131.53,0.04994336]
[1725518073841,3.8013,131.54,131.53,0.04994336]
[1725518080145,27.1813,131.54,131.53,0.04994336]
[1725518080850,0.04941452,131.55,131.47,3.78195149]
[1725518081047,23.38,131.52,131.44,2.7717]
[1725518081547,3.8023,131.51,131.47,3.8032]
[1725518081749,0.05426057,131.5,131.48,0.04978203]
[1725518083744,3.85666057,131.5,131.48,0.04978203]
[1725518085053,0.05426057,131.5,131.48,0.04978203]
[1725518088352,0.05426057,131.5,131.48,3.85258203]
[1725518088551,0.05426057,131.5,131.48,0.04978203]
[1725518088757,0.05426057,131.5,131.49,1.3803]
[1725518088957,0.05426057,131.5,131.49,5.183]
[1725518091946,0.05426057,131.5,131.49,1.3803]
[1725518092547,0.05426057,131.5,131.48,3.85268203]
[1725518097763,0.05426057,131.5,131.48,0.04978203]
[1725518098656,9.40426057,131.5,131.48,0.04978203]
[1725518099056,3.8027,131.49,131.48,0.04978203]
[1725518101453,13.20686057,131.5,131.48,0.04978203]
[1725518101958,3.8027,131.49,131.48,0.04978203]
[1725518102662,3.85686057,131.5,131.48,0.04978203]
[1725518102959,0.05426057,131.5,131.49,3.8027]
[1725518103158,0.05426057,131.5,131.48,9.39978203]
[1725518103362,0.05426057,131.5,131.48,0.04978203]
[1725518106563,0.05426057,131.5,131.48,3.85268203]
[1725518108159,0.05426057,131.5,131.48,0.04978203]
[1725518111668,0.05426057,131.5,131.48,3.85268203]
[1725518116466,0.05426057,131.5,131.49,3.8027]
[1725518116867,73.48849367,131.6,131.49,9.35]
[1725518117063,9.35,131.59,131.53,9.35]
[1725518117267,9.35,131.6,131.54,3.8802754]
[1725518117566,9.35,131.6,131.54,9.35]
[1725518117760,9.35,131.6,131.56,3.85547791]
[1725518117761,13.1498,131.6,131.56,3.85547791]
[1725518117965,0.05431652,131.58,131.56,3.85547791]
[1725518118969,0.05431652,131.58,131.57,3.8004]
[1725518119168,0.05431652,131.58,131.57,13.1504]
[1725518119675,9.35,131.63,131.57,9.35]
[1725518119872,9.35,131.64,131.57,9.35]
[1725518120367,3.7989,131.63,131.57,9.35]
[1725518120577,3.7989,131.63,131.59,3.7998]
[1725518120774,3.7989,131.63,131.6,0.05193234]
[1725518121974,3.86864922,131.67,131.6,0.05193234]
[1725518122176,9.35,131.66,131.6,0.05193234]
[1725518122474,9.35,131.66,131.6,9.40193234]
[1725518123064,13.148,131.66,131.62,3.7987]
[1725518123264,3.79350896,131.69,131.63,0.05546903]
[1725518123466,9.35,131.67,131.65,0.05474695]
[1725518123671,9.35,131.67,131.65,0.04984246]
[1725518123878,3.7978,131.66,131.65,0.04984246]
[1725518124075,13.16745117,131.66,131.56,2.8058]
[1725518124274,9.35,131.63,131.56,12.1558]
[1725518124474,13.1489,131.63,131.59,3.7996]
[1725518125171,9.35,131.63,131.58,3.8]
[1725518125477,9.39942972,131.61,131.58,0.05261757]
[1725518125674,13.19872972,131.61,131.58,0.05270671]
[1725518126573,0.04942972,131.61,131.58,0.05270671]
[1725518127578,3.84882972,131.61,131.58,0.05270671]
[1725518128081,0.04942972,131.61,131.58,0.05270671]
[1725518129179,0.04942972,131.61,131.58,3.85270671]
[1725518130679,0.04942972,131.61,131.59,3.7998]
[1725518130974,0.04942972,131.61,131.58,0.05270671]
[1725518131976,0.04942972,131.61,131.6,3.7995]
[1725518132177,0.04942972,131.61,131.58,0.05270671]
[1725518132772,0.04942972,131.61,131.58,3.85270671]
[1725518135579,0.04942972,131.61,131.59,3.7997]
[1725518135875,0.04942972,131.61,131.58,0.05270671]
[1725518137085,0.04942972,131.61,131.59,3.7996]
[1725518138275,0.04942972,131.61,131.6,3.7995]
[1725518138883,0.04942972,131.61,131.58,0.05270671]
[1725518139581,0.04942972,131.61,131.58,3.85280671]
[1725518139582,3.84882972,131.61,131.58,3.85280671]
[1725518139985,0.04942972,131.61,131.58,3.85280671]
[1725518140984,3.7996,131.6,131.58,0.05270671]
[1725518142576,23.36,131.59,131.48,1.3052]
[1725518142780,27.19209493,131.58,131.48,27.3674]
[1725518142983,23.36,131.58,131.48,27.3674]
[1725518143287,3.8012,131.55,131.48,27.3674]
[1725518144085,0.05490793,131.53,131.51,3.8021]
[1725518144979,0.05490793,131.53,131.52,3.84562737]
[1725518146085,228.0,131.65,131.5,23.41038059]
[1725518146285,23.36,131.61,131.52,23.36]
[1725518146489,23.36,131.61,131.53,3.80836501]
[1725518146879,3.8006,131.57,131.53,7.60986501]
[1725518147182,0.05122444,131.56,131.54,0.05559127]
[1725518147786,0.05122444,131.56,131.55,3.83574144]
[1725518148589,3.7996,131.6,131.56,3.8007]
[1725518148791,3.7996,131.6,131.56,7.63006658]
[1725518149091,3.7996,131.6,131.56,3.8007]
[1725518149592,3.7994,131.61,131.57,3.85476678]
[1725518150388,3.7994,131.61,131.58,7.69334005]
[1725518156396,3.7994,131.61,131.58,3.89324005]
[1725518156588,23.36,131.63,131.57,0.05436678]
[1725518156787,23.36,131.63,131.59,0.04994176]
[1725518157292,3.7995,131.6,131.59,0.04994176]
[1725518159295,3.8008,131.56,131.54,1.3747]
[1725518159798,23.36,131.59,131.54,1.3747]
[1725518160197,3.8005,131.57,131.54,1.3747]
[1725518160391,3.85707419,131.57,131.54,1.42828294]
[1725518162596,0.05657419,131.57,131.54,0.05358294]
[1725518162802,23.41657419,131.57,131.54,0.05358294]
[1725518163201,27.161,131.55,131.54,0.05358294]
[1725518163400,23.36,131.55,131.49,3.8027]
[1725518163595,23.36,131.55,131.47,27.4941]
[1725518163899,23.36,131.55,131.47,7.9373]
[1725518164101,23.36,131.53,131.47,6.5707]
[1725518164303,0.05626989,131.51,131.49,0.05723726]
[1725518164605,0.05626989,131.51,131.43,5.1709]
[1725518164606,23.36,131.49,131.43,5.14122249]
[1725518164807,3.85988456,131.47,131.45,0.05049947]
[1725518165203,0.05658456,131.47,131.45,0.05049947]
[1725518165402,0.05658456,131.47,131.37,24.7513]
[1725518165403,23.36,131.46,131.37,24.7513]
[1725518165605,23.36,131.46,131.37,29.95538779]
[1725518166303,3.85279052,131.43,131.4,0.0535658]
[1725518170503,3.8047,131.42,131.4,0.0535658]
[1725518170706,0.04829052,131.43,131.4,0.0535658]
[1725518171210,3.805,131.42,131.4,0.0535658]
[1725518172407,0.04829052,131.43,131.4,0.0535658]
[1725518173607,3.85299052,131.43,131.4,0.0535658]
[1725518174213,0.04829052,131.43,131.4,3.8588658]
[1725518176212,0.04829052,131.43,131.4,0.0535658]
[1725518176818,3.805,131.41,131.4,0.0535658]
[1725518179927,0.04829052,131.43,131.4,0.0535658]
[1725518180627,3.805,131.42,131.4,0.0535658]
[1725518181130,3.805,131.41,131.4,0.0535658]
[1725518182323,3.8048,131.42,131.4,0.0535658]
[1725518183430,0.04829052,131.43,131.4,0.0535658]
[1725518184635,3.805,131.41,131.4,0.0535658]
[1725518192034,0.04829052,131.43,131.4,0.0535658]
[1725518192531,3.805,131.41,131.4,0.0535658]
[1725518196135,46.99995204,131.41,131.28,23.36]
[1725518196342,23.36,131.37,131.29,4.1802]